Cogmind - Beta 14 *** ADVENTURER MODE // 2025.03.24 @ 06:42:26 Player: Puke Buster Result: Destroyed by G-47 Trooper with Particle Gun Performance ------------- Evolutions (2) 1000 Regions Visited (5) 1000 Robots Destroyed (40) 200 Value Destroyed (1124) 1124 Prototype IDs (2) 40 Alien Tech Used (0) 0 Bonus (0) 0 TOTAL SCORE: 3364 Bonus ------- None Cogmind --------- Core Integrity 0/550 Matter 106/300 Energy 89/100 System Corruption 0% Temperature Critical (525) Movement Core (100) Ox1 Location -8/Materials Parts ------- > --- POWER (1) -------- (None) > --- PROPULSION (2) --- (None) > --- UTILITY (4) ------ Small Storage Unit Targeting Computer > --- WEAPON (4) ------- (None) > --- INVENTORY (8) ---- (None) Peak State ------------ > --- POWER ------------ Ion Engine > --- PROPULSION ------- Aluminum Leg Aluminum Leg > --- UTILITY ---------- Small Storage Unit Compact Battery Targeting Computer ECM Suite > --- WEAPON ----------- EM Pulse Gun Beam Cannon Minigun Light Cannon > --- INVENTORY -------- Light Ion Engine Aluminum Leg Shotgun Grenade Launcher Rocket Launcher Missile Launcher [Rating: 16] Favorites ----------- Power Ion Engine Engine Ion Engine Propulsion Aluminum Leg Leg Aluminum Leg Utility Small Storage Unit Device ECM Suite Storage Small Storage Unit Processor Targeting Computer Protection Light Armor Plating Weapon EM Pulse Gun Energy Gun EM Pulse Gun Energy Cannon Beam Cannon Ballistic Gun Minigun Ballistic Cannon Light Cannon Launcher Grenade Launcher Build | -11 -10 -10 -10 -9 -8 ------- Run | Yrd Mat Min Exi Min Mat Slots Evolved 4 | . . . . . 4 Power . | . . . . . . Propulsion . | . . . . . . Utility 2 | . . . . . 2 Weapon 2 | . . . . . 2 Parts Attached 27 | 6 7 2 . . 12 Power 4 | 1 2 . . . 1 Engine 4 | 1 2 . . . 1 Core . | . . . . . . Reactor . | . . . . . . Propulsion 6 | 2 2 . . . 2 Treads . | . . . . . . Leg 6 | 2 2 . . . 2 Wheel . | . . . . . . Hover . | . . . . . . Flight . | . . . . . . Utility 5 | 1 2 . . . 2 Device 1 | . 1 . . . . Storage 2 | 1 . . . . 1 Processor 1 | . . . . . 1 Hackware . | . . . . . . Protection 1 | . 1 . . . . Artifact . | . . . . . . Weapon 12 | 2 1 2 . . 7 Energy Gun 3 | 2 . 1 . . . Energy Cannon 1 | . . . . . 1 Ballistic Gun 3 | . 1 . . . 2 Ballistic Cannon 1 | . . . . . 1 Launcher 4 | . . 1 . . 3 Special Weapon . | . . . . . . Impact Weapon . | . . . . . . Slashing Weapon . | . . . . . . Piercing Weapon . | . . . . . . Special Melee Weapon . | . . . . . . Unidentified Prototypes . | . . . . . . Parts Lost 18 | . 3 2 . . 13 Power 2 | . 1 . . . 1 Propulsion 3 | . 1 . . . 2 Utility 3 | . 1 . . . 2 Weapon 10 | . . 2 . . 8 Highest Loss Streak 13 | . 3 1 . . 13 To Critical Strikes . | . . . . . . Average Slot Usage (%) 97 | . 94 98 100 100 94 Engine 12 | . 13 14 14 14 8 Leg 25 | . 25 28 28 28 17 Device 10 | . 1 14 14 14 8 Storage 14 | . 14 14 14 14 14 Processor 2 | . . . . . 9 Protection 1 | . 9 . . . . Energy Gun 14 | . 20 21 14 14 8 Energy Cannon 2 | . . . . . 9 Ballistic Gun 3 | . 7 2 . . 7 Ballistic Cannon 1 | . . . . . 8 Launcher 7 | . . 3 14 14 2 Peak Build Rating 16 | 6 7 7 7 7 16 Average Rating 8 | 4 6 6 7 7 13 On Entrance 5 | . 6 7 7 7 7 Naked Turns . | . . . . . . Heaviest Build 24 | 14 17 17 17 17 24 Greatest Support 20 | 20 20 20 20 20 20 Greatest Overweight (x) 6 | . 3 . . . 6 Average Overweight (x) . | . . . . . 1 Largest Inventory Capacity 8 | 8 8 8 8 8 8 Average Capacity 7 | 7 8 8 8 8 8 Most Carried 6 | 3 4 3 3 4 6 Average Carried 2 | . 1 2 3 3 3 Final Capacity 8 | 8 8 8 8 8 8 Final Carried 4 | 1 2 3 3 4 . Class Distribution -------------------- 77% | Mutant 22% | Gunner Dominant Class ---------------- Mutant | -10/Materials Mutant | -10/Mines Mutant | -10/Exiles Mutant | -9/Mines Gunner | -8/Materials Resources | -11 -10 -10 -10 -9 -8 ----------- Run | Yrd Mat Min Exi Min Mat Matter Collected 614 | 162 149 87 . 18 198 Remotely . | . . . . . . Salvage Created 1350 | . 258 222 . 17 853 Parts 87 | . 21 14 . 7 45 Haulers Intercepted . | . . . . . . Recyclers Shooed 3 | . 1 . . . 2 Parts Field Recycled . | . . . . . . Retrieved Matter . | . . . . . . Parts Self-Destructed . | . . . . . . Prevented . | . . . . . . Kills | -11 -10 -10 -10 -9 -8 ------- Run | Yrd Mat Min Exi Min Mat Combat Hostiles Destroyed 29 | . 10 4 . 3 12 Guns 17 | . 10 4 . . 3 Cannons 8 | . . . . . 8 AOE 4 | . . . . 3 1 Classes Destroyed 9 | . 3 2 . . 4 Worker 3 | . . 1 . . 2 Tunneler 1 | . . . . . 1 Recycler 3 | . . . . . 3 Operator 1 | . . . . . 1 Watcher 3 | . 1 . . . 2 Swarmer 9 | . 6 . . 3 . Grunt 14 | . 4 2 . . 8 Sentry 5 | . . 2 . . 3 Hunter 1 | . . . . . 1 Best Kill Streak 10 | . 4 3 . 3 10 Combat Bots Only 5 | . 3 2 . 3 5 Max Kills in Single Turn 3 | . 2 1 . 3 2 Gunslinging 1 | . 1 . . . . Exploded 3 | . . . . 3 1 Melee . | . . . . . . Uniques/NPCs Destroyed . | . . . . . . Combat | -11 -10 -10 -10 -9 -8 -------- Run | Yrd Mat Min Exi Min Mat Hostile Shots Fired 209 | . 84 33 . 6 86 Missed 52 | . 19 13 . 2 18 Damage Taken 2252 | . 598 243 . 47 1364 Core 756 | . 135 58 . 8 555 Absorbed by Shields . | . . . . . . Ignored by Resistances 561 | . 175 66 . 13 307 Core Remaining (%) 59 | 100 . . . 19 . Volleys Fired 90 | . 34 17 . 2 37 Largest 4 | . 2 2 . 2 4 Hottest 160 | . 90 90 . 70 160 Shots Fired 209 | . 60 27 . 4 118 Gun 144 | . 60 26 . 2 56 Cannon 57 | . . . . . 57 Launcher 8 | . . 1 . 2 5 Special . | . . . . . . Kinetic 84 | . 20 4 . . 60 Thermal 77 | . 29 15 . . 33 Explosive 8 | . . 1 . 2 5 Electromagnetic 40 | . 11 7 . 2 20 Robot Hit Streak 15 | . 11 10 . 1 15 Robot Miss Streak 4 | . 4 2 . 3 3 Penetration Max . | . . . . . . Secondary Targets 1 | . 1 . . . . Max Gunslinging Chain 1 | . 1 . . . . Shots Hit Robots 138 | . 42 22 . 1 73 Core Hits 76 | . 17 12 . 3 44 Critical Kills . | . . . . . . Critical Parts Destroyed . | . . . . . . Critical Strikes 5 | . 3 1 . . 1 Burn 3 | . 2 1 . . . Blast 1 | . . . . . 1 Corrupt 1 | . 1 . . . . Melee Attacks . | . . . . . . Impact . | . . . . . . Slashing . | . . . . . . Piercing . | . . . . . . Sneak Attacks . | . . . . . . Combat Hostiles . | . . . . . . Follow-up Attacks . | . . . . . . Damage Inflicted 2816 | . 474 271 . 126 1945 Guns 1372 | . 473 254 . . 645 Cannons 577 | . . . . . 577 Explosions 845 | . . . . 125 720 Melee . | . . . . . . Ramming 22 | . 1 17 . 1 3 Kinetic 843 | . 115 26 . . 702 Thermal 867 | . 264 152 . . 451 Explosive 709 | . . . . 125 584 Electromagnetic 375 | . 94 76 . . 205 Impact . | . . . . . . Slashing . | . . . . . . Piercing . | . . . . . . Highest Corruption . | . . . . . . Average Corruption . | . . . . . . Corruption Purged . | . . . . . . Corruption Blocked . | . . . . . . Overload Shots . | . . . . . . Overflow Damage 42 | . . . . . 42 Projectiles . | . . . . . . Explosions 42 | . . . . . 42 Melee . | . . . . . . Knockbacks 2 | . . 1 . . 1 Impact 1 | . . 1 . . . Kinetic 1 | . . . . . 1 Secondary . | . . . . . . Self-Inflicted Damage 181 | . . 20 . 20 141 Shots 6 | . . 1 . 1 4 Rammed . | . . . . . . Targets Rammed 7 | . 2 3 . 1 1 Kicked 7 | . 2 3 . 1 1 Crushed . | . . . . . . Highest Temperature 738 | . 514 213 . 18 738 Average Temperature 202 | . 175 85 . 10 275 Received Heat Transfer 1068 | . 336 111 . . 621 Effects 31 | . 8 . . . 23 Shutdowns 2 | . 1 . . . 1 Energy Bleed 2 | . . . . . 2 Interference 8 | . 2 . . . 6 Matter Decay 2 | . 1 . . . 1 Short Circuit 3 | . . . . . 3 Damage (minor) 5 | . . . . . 5 Damage (major) 4 | . 2 . . . 2 Damage (core) 5 | . 2 . . . 3 Siege Activations . | . . . . . . Robots Corrupted . | . . . . . . Combat Hostiles . | . . . . . . Parts Fried . | . . . . . . Impact Corruptions . | . . . . . . Robots Melted . | . . . . . . Combat Hostiles . | . . . . . . Parts Melted 3 | . 1 1 . . 1 Heat Transferred 2259 | . 925 518 . . 816 Parts Sabotaged . | . . . . . . Parts Stolen . | . . . . . . Parts Stripped . | . . . . . . Power Chain Reactions 2 | . . . . . 2 Alert | -11 -10 -10 -10 -9 -8 ------- Run | Yrd Mat Min Exi Min Mat Peak Influence 245 | . 245 117 . 97 212 Initial 20 | . . 20 . . . Average 84 | . 108 70 . 76 92 Maximum Alert Level 1 | . 1 . . . 1 Low Security (%) 96 | 100 84 100 . 100 99 Level 1 3 | . 15 . . . . Level 2 . | . . . . . . Level 3 . | . . . . . . Level 4 . | . . . . . . Level 5 . | . . . . . . High Security . | . . . . . . Max Security . | . . . . . . Squads Dispatched 4 | . 2 . . . 2 Investigation 3 | . 2 . . . 1 Extermination . | . . . . . . Reinforcement . | . . . . . . Assault . | . . . . . . Garrison 1 | . . . . . 1 Intercept . | . . . . . . Searches Triggered . | . . . . . . Construction Impeded . | . . . . . . Haulers Reinforced . | . . . . . . Active Scanning Responses . | . . . . . . Cargo Convoy Interrupts . | . . . . . . Stealth | -11 -10 -10 -10 -9 -8 --------- Run | Yrd Mat Min Exi Min Mat Distress Signals 2 | . . . . . 2 Communications Jammed . | . . . . . . Distress Signals . | . . . . . . Times Spotted 43 | . 13 7 . 3 20 Peak Tracking Total 5 | . 4 2 . 3 5 Tactical Retreats 3 | . 1 2 . . . Traps | -11 -10 -10 -10 -9 -8 ------- Run | Yrd Mat Min Exi Min Mat Traps Triggered 1 | . 1 . . . . Indirectly . | . . . . . . Trap Hack Attempts . | . . . . . . Triggered . | . . . . . . Disarmed . | . . . . . . Reprogrammed . | . . . . . . Reused . | . . . . . . Traps Extracted . | . . . . . . Installed . | . . . . . . Triggered . | . . . . . . Machines | -11 -10 -10 -10 -9 -8 ---------- Run | Yrd Mat Min Exi Min Mat Machines Disabled 4 | . . . . 1 3 Max in Single Turn 1 | . . . . 1 1 Machines Repaired . | . . . . . . Machines Dismantled . | . . . . . . Machines Sabotaged . | . . . . . . Overloaded Fab Kills . | . . . . . . Hacking | -11 -10 -10 -10 -9 -8 --------- Run | Yrd Mat Min Exi Min Mat Machines Accessed 9 | . 4 . 3 . 2 Terminals 6 | . 4 . . . 2 Fabricators . | . . . . . . Repair Stations . | . . . . . . Recycling Units . | . . . . . . Scanalyzers . | . . . . . . Garrison Access . | . . . . . . Total Hacks 54 | . 15 . 34 . 5 Successful 45 | . 9 . 34 . 2 Failed 9 | . 6 . . . 3 Catastrophic 2 | . 1 . . . 1 Database Lockouts . | . . . . . . Manual . | . . . . . . Terminals 20 | . 15 . . . 5 Fabricators . | . . . . . . Repair Stations . | . . . . . . Recycling Units . | . . . . . . Scanalyzers . | . . . . . . Garrison Access . | . . . . . . Terminal Hacks 45 | . 9 . 34 . 2 Record 42 | . 6 . 34 . 2 Prototype ID Bank 1 | . 1 . . . . Emergency Access Points 1 | . 1 . . . . Dispatch Records 1 | . 1 . . . . Fabricator Hacks . | . . . . . . Repair Station Hacks . | . . . . . . Recycling Unit Hacks . | . . . . . . Scanalyzer . | . . . . . . Garrison Access Hacks . | . . . . . . Unauthorized Hacks . | . . . . . . Terminals . | . . . . . . Fabricators . | . . . . . . Repair Stations . | . . . . . . Recycling Units . | . . . . . . Scanalyzers . | . . . . . . Garrison Access . | . . . . . . Data Cores Recovered 1 | . . . . . 1 Used . | . . . . . . Hacking Detections 6 | . 4 . . . 2 Full Trace Events 2 | . 1 . . . 1 Feedback Events . | . . . . . . Feedback Blocked . | . . . . . . Robot Schematics Acquired . | . . . . . . Robots Built . | . . . . . . Authchips . | . . . . . . Time . | . . . . . . Total Robot Build Rating . | . . . . . . Part Schematics Acquired . | . . . . . . Parts Built . | . . . . . . Authchips . | . . . . . . Time . | . . . . . . Total Part Build Rating . | . . . . . . Parts Repaired . | . . . . . . Time . | . . . . . . Parts Recycled . | . . . . . . Recycled Matter . | . . . . . . Retrieved Matter . | . . . . . . Retrieved Components . | . . . . . . Parts Scanalyzed . | . . . . . . Part Schematics Acquired . | . . . . . . Parts Damaged . | . . . . . . Bothacking | -11 -10 -10 -10 -9 -8 ------------ Run | Yrd Mat Min Exi Min Mat Used RIF Installer . | . . . . . . Robots Hacked . | . . . . . . Non-combat . | . . . . . . Combat . | . . . . . . Robot Hacks Applied . | . . . . . . Relay Couplers Released . | . . . . . . Fabnet Peak Effective % . | . . . . . . Robots Rewired . | . . . . . . Allies Hacked . | . . . . . . Hacks Repelled . | . . . . . . Allies | -11 -10 -10 -10 -9 -8 -------- Run | Yrd Mat Min Exi Min Mat Total Allies . | . . . . . . Largest Group . | . . . . . . Highest-Rated Group . | . . . . . . Highest-Rated Ally . | . . . . . . Total Orders . | . . . . . . Ally Attacks . | . . . . . . Total Damage . | . . . . . . Kills . | . . . . . . Allies Corrupted . | . . . . . . Allies Melted . | . . . . . . Intel | -11 -10 -10 -10 -9 -8 ------- Run | Yrd Mat Min Exi Min Mat Robot Analysis Total . | . . . . . . Derelict Logs Recovered 2 | . . . . 2 . Drone Launches . | . . . . . . Drone Recoveries . | . . . . . . Exploration | -11 -10 -10 -10 -9 -8 ------------- Run | Yrd Mat Min Exi Min Mat Turns Passed 2927 | 73 464 387 869 460 674 Spaces Moved 1916 | 49 250 280 723 372 242 Core 20 | 13 4 . . . 3 Treads . | . . . . . . Legs 1896 | 36 246 280 723 372 239 Wheels . | . . . . . . Hover . | . . . . . . Flight . | . . . . . . Fastest Speed 50 | 50 120 120 120 120 100 Average Speed 129 | 101 127 120 120 120 190 Slowest Speed 350 | 120 200 120 120 120 350 Overloaded Moves . | . . . . . . Propulsion Burnouts . | . . . . . . Robots Hopped . | . . . . . . Cave-ins Triggered . | . . . . . . Exploration Rate (%) 50 | 4 45 51 91 85 26 Regions Visited 5 Branch Regions 3 Pre-discovered Areas 2 | . . . 1 1 . Known Exits Taken . | . . . . . . Unknown Exits Taken 5 | 1 1 1 1 1 . Scrap Searched 1 | . . . . 1 . Spaces Dug . | . . . . . . Terrain Destroyed 47 | . . 5 . 18 24 Melee . | . . . . . . Projectile . | . . . . . . AOE 47 | . . 5 . 18 24 Terrain Rammed . | . . . . . . Walls Destroyed . | . . . . . . Machines Disabled . | . . . . . . Actions | -11 -10 -10 -10 -9 -8 --------- Run | Yrd Mat Min Exi Min Mat Total 2201 | 72 341 304 724 381 379 Wait 134 | 11 39 . . 6 78 Move 1911 | 48 249 279 722 371 242 Hop . | . . . . . . Pick Up 23 | 7 6 3 . 1 6 Fast Attach . | . . . . . . Attach 26 | 6 7 2 . . 11 Detach 5 | . 3 . . . 2 Swap 1 | . . . . . 1 Drop 2 | . 1 . . . 1 Fire 90 | . 34 17 . 2 37 Melee . | . . . . . . Ram . | . . . . . . Kick 7 | . 2 3 . 1 1 Crush . | . . . . . . Escape Stasis . | . . . . . . Rewire 2 | . . . 2 . . Trap . | . . . . . . Miscellaneous . | . . . . . . Route ------- -11/Scrapyard -10/Materials -10/Mines -10/Exiles (discovered 2 exits: [*Min x2]) -9/Mines (discovered 2 exits: *Mat x2) -8/Materials History --------- Turn | Location | Event 8 | -11/Scrapyard | Discovered new exit (range 16) 74 | -11/Scrapyard | Entered Materials 312 | -10/Materials | Build established: Mutant 409 | -10/Materials | Core integrity fell below 50% 444 | -10/Materials | Lost 3 parts (1p1n1u) 482 | -10/Materials | Discovered new exit (range 13) 538 | -10/Materials | Entered Mines 747 | -10/Mines | Deemed a non-threat by the Exiles lab entrance 747 | -10/Mines | Discovered new exit (range 5) 925 | -10/Mines | Entered Exiles 945 | -10/Exiles | Discovered new exit (range 15) 963 | -10/Exiles | Met 8R-AWN 985 | -10/Exiles | Met EX-HEX 1058 | -10/Exiles | Met EX-DEC 1093 | -10/Exiles | Learned location of Zion (-7) 1138 | -10/Exiles | Discovered new exit (range 11) 1250 | -10/Exiles | Visited The Gauntlet 1521 | -10/Exiles | Met EX-BIN 1794 | -10/Exiles | Entered Mines 1830 | -9/Mines | Core integrity fell below 20% 1882 | -9/Mines | Discovered new exit (range 6) 1966 | -9/Mines | Learned location of Recycling (-9) 2114 | -9/Mines | Learned Materials stockpile data 2134 | -9/Mines | Discovered new exit (range 8) 2254 | -9/Mines | Entered Materials 2254 | -8/Materials | Evolved 4 slots: Utility x2, Weapon x2 2543 | -8/Materials | Build established: Gunner 2698 | -8/Materials | Garrison activated, responded to threat 2903 | -8/Materials | Core integrity fell below 50% 2917 | -8/Materials | Core integrity fell below 20% 2928 | -8/Materials | Destroyed by G-47 Trooper with Particle Gun Last Messages --------------- U-05 Engineer lays Concrete. Overheating: Sml. Storage Unit damaged (-28). U-05 Engineer lays Concrete. K-01 Serf collects debris. U-05 Engineer lays Concrete. Overheating: Energy bleed (-17). U-05 Engineer lays Concrete. Overheating: Lgt. Ion Engine damaged (-11). Overheating: Targeting Computer damaged (-5). U-05 Engineer lays Concrete. Lgt. Ion Engine broken. Overheating: Short circuit. U-05 Engineer lays Concrete. Broken Lgt. Ion Engine severed. K-01 Serf collects debris. U-05 Engineer lays Concrete. K-01 Serf collects debris. U-05 Engineer lays Concrete. U-05 Engineer builds a Wall. Critical hit (Burn: +37). Map ----- +----------------------------------------------------+ | ?????????????????????????????????????????????????? | | ?????????????????????????????????????????????????? | | ?????????????????????????????????????????????????? | | ?????????????????????????????????????????????????? | | ?????????????????????????????????????????????????? | | ?????????????????????????????????????????????????? | | ?????????????????????????????????????????????????? | | ?????????????????????????????????????????????????? | | ?????????????????????????????????????????????????? | | ?????????????????????????????????????????????????? | | ????????????????!????????????????????????????????? | | ?????????????????????????????????????????????????? | | ?????????????????????????????????????????????????? | | ?????????????????????????????????????????????????? | | ?????????????????????????????????????????????????? | | ?????????????????????????????????????????????????? | | ???????????????????###########???????????????????? | | ???????????????????# #???????????????????? | | ???????????????????# #???????????????????? | | ???????????????????# #???????????????????? | | ???????????????????# === #?? #???????????????? | | ???????????????????# === #? #???????????????? | | ????????????????#### === # #???????????????? | | ????????????????# = #???????????????? | | ??????????# ???#= # #???????????????? | | ??????????# ###%# @ #???????????????? | | ??????????# % ur* * % k ####????????????? | | ??????????# %!!g l ?????????? | | ??????????# !=% g % % ?????????? | | ??????????# " [*% w %%% ?????????? | | ??????????# u k ??????????? | | ??????????+ "u " u ###??????????? | | ??????????# " " ##### #????????????? | | ??????????# #???? ???????????? | | ??????????## #????? ???????????? | | ???????????# """ #????? ????????????? | | ???????????# """"" #?????? ????????????? | | ############ """"" #?????? ?????????????? | | "" """ """ # """"" #??????? ???????????????? | | "" """ """ # """ #????????????????????????? | | "" """ """ # #????????????????????????? | | # #????????????????????????? | | # #????????????????????????? | | = ! # #????????????????????????? | | #######+#### ""T"" #????????????????????????? | | # """"" #?????????????!??????????? | | """ # #????????????????????????? | | """ + #????????????????????????? | | """ # ##########+#####????????????????????????? | | # #???????????????????????????????????????? | +----------------------------------------------------+ Best States ------------- Heat Dissipation 31 Energy Generation 10 Energy Capacity 450 Matter Stores 300 Matter Capacity 300 Sight Range 16 Terrain Scan Density 10 ECM Strength 1 Armor Coverage 150 Resistance: KI 20 Resistance: TH 20 Resistance: EX 20 Resistance: EM 20 Resistance: I 20 Resistance: S 20 Resistance: P 20 Evasion (%) 55 Targeting Accuracy 5 Offensive Hacking 10 Item Schematics ----------------- None Robot Schematics ------------------ None Fabricated ------------ Nothing Alien Tech Used ----------------- None Achievements -------------- Librarian Challenges ------------ None Game ------ Seed AntimatterDisruptorFragment Manual? 0 Play Time 00:40:46 Cumulative 4.9 hours Start 2025.03.24 @ 05:28:30 End 2025.03.24 @ 06:42:26 Sessions 1 Manual Loads 0 Difficulty Adventurer Special Mode None Game No. 6 Rogue 0 Adventurer 6 Explorer 0 Win Type - Total 0 Types 0/0/0/0/0/0/0/0/0 Lore% 8 Gallery% 9 Achievement% 12 Wizard Run 0 Options --------- Layout 2 ASCII 0 Keyboard 0 Movement Mouse Keybinds 0 Fullscreen 1 Font 16/X11CapsBold Map View 25x22 Zoom Use 99% Tactical HUD 0 Map Filters NONE Filters NONE Steam X RUN: a82441e4-dd9e-4c1b-b714-539faead0c0f